[Event "*** SCC Grand Prix: Titled Tuesday Blitz"]
[Site "Chess.com"]
[Date "2020.10.13"]
[Round "7"]
[White "NMZanette"]
[Black "Castleqweenside7447"]
[Result "1/2-1/2"]
[WhiteElo "2259"]
[BlackElo "2438"]
[TimeControl "180+1"]
[EndTime "11:13:31 PDT"]
[Termination "Game drawn by repetition"]

1. e4 {[%clk 0:03:00.9]} 1... c6 {[%clk 0:02:59.6]} 2. Nc3 {[%clk 0:03:00.4]}
2... d5 {[%clk 0:02:59.4]} 3. Nf3 {[%clk 0:03:00.8]} 3... dxe4 {[%clk
0:02:58.4]} 4. Nxe4 {[%clk 0:03:01.4]} 4... Bf5 {[%clk 0:02:58.9]} 5. Ng3 {[%clk
0:03:01.1]} 5... Bg4 {[%clk 0:02:59.2]} 6. h3 {[%clk 0:03:01]} 6... Bxf3 {[%clk
0:02:59.5]} 7. Qxf3 {[%clk 0:03:01.9]} 7... Nd7 {[%clk 0:03:00.4]} 8. d4 {[%clk
0:03:01.2]} 8... Ngf6 {[%clk 0:02:59.2]} 9. Bc4 {[%clk 0:02:59.5]} 9... e6
{[%clk 0:02:59.4]} 10. O-O {[%clk 0:02:58.7]} 10... Bd6 {[%clk 0:02:59.5]} 11.
Ne4 {[%clk 0:02:55.6]} 11... Nxe4 {[%clk 0:02:59.2]} 12. Qxe4 {[%clk 0:02:56.2]}
12... O-O {[%clk 0:02:58.9]} 13. c3 {[%clk 0:02:51.7]} 13... Nf6 {[%clk
0:02:51.4]} 14. Qe2 {[%clk 0:02:50.9]} 14... Qc7 {[%clk 0:02:48.4]} 15. Bg5
{[%clk 0:02:48.6]} 15... Nd5 {[%clk 0:02:48]} 16. g3 {[%clk 0:02:28.2]} 16...
Rfe8 {[%clk 0:02:43.1]} 17. Qf3 {[%clk 0:02:10.3]} 17... Be7 {[%clk 0:02:28.5]}
18. Bd2 {[%clk 0:02:06.7]} 18... Rad8 {[%clk 0:02:27.5]} 19. Rae1 {[%clk
0:02:04.9]} 19... a6 {[%clk 0:02:18.5]} 20. Re4 {[%clk 0:01:49.4]} 20... Nf6
{[%clk 0:02:13.7]} 21. Re2 {[%clk 0:01:48.5]} 21... c5 {[%clk 0:02:10.9]} 22.
dxc5 {[%clk 0:01:45.6]} 22... Bxc5 {[%clk 0:02:10.7]} 23. Bb3 {[%clk 0:01:41.4]}
23... b5 {[%clk 0:02:06.6]} 24. Bg5 {[%clk 0:01:39.3]} 24... Be7 {[%clk
0:02:01]} 25. Bf4 {[%clk 0:01:33]} 25... Bd6 {[%clk 0:01:59.5]} 26. Bg5 {[%clk
0:01:32.8]} 26... Be7 {[%clk 0:01:59.4]} 27. Bf4 {[%clk 0:01:32]} 27... Bd6
{[%clk 0:01:56.1]} 28. Bg5 {[%clk 0:01:30.9]} 28... Be7 {[%clk 0:01:55.9]}
1/2-1/2

[Event "*** SCC Grand Prix: Titled Tuesday Blitz"]
[Site "Chess.com"]
[Date "2020.10.13"]
[Round "7"]
[White "FairChess_on_YouTube"]
[Black "FMJoseHerrera"]
[Result "1-0"]
[WhiteElo "2973"]
[BlackElo "2563"]
[TimeControl "180+1"]
[EndTime "11:13:38 PDT"]
[Termination "FairChess_on_YouTube won by resignation"]

1. e4 {[%clk 0:03:00.9]} 1... c5 {[%clk 0:02:59.4]} 2. Nc3 {[%clk 0:02:59.9]}
2... e6 {[%clk 0:02:59]} 3. Nge2 {[%clk 0:02:59.7]} 3... a6 {[%clk 0:02:59]} 4.
g3 {[%clk 0:02:59.1]} 4... Qc7 {[%clk 0:02:58.5]} 5. Bg2 {[%clk 0:02:58.8]} 5...
b6 {[%clk 0:02:58.8]} 6. d4 {[%clk 0:02:57.8]} 6... cxd4 {[%clk 0:02:58.8]} 7.
Nxd4 {[%clk 0:02:58.7]} 7... Bb7 {[%clk 0:02:59]} 8. O-O {[%clk 0:02:58.5]} 8...
d6 {[%clk 0:02:58.7]} 9. f4 {[%clk 0:02:53.9]} 9... Nd7 {[%clk 0:02:57.7]} 10.
f5 {[%clk 0:02:53.9]} 10... e5 {[%clk 0:02:56.6]} 11. Ne6 {[%clk 0:02:53.6]}
11... fxe6 {[%clk 0:02:47.6]} 12. fxe6 {[%clk 0:02:54.5]} 12... Ndf6 {[%clk
0:02:47.8]} 13. Nd5 {[%clk 0:02:52.8]} 13... Bxd5 {[%clk 0:02:45.5]} 14. exd5
{[%clk 0:02:53.7]} 14... h5 {[%clk 0:02:34.9]} 15. Qd3 {[%clk 0:02:50]} 15...
Ne7 {[%clk 0:02:25.7]} 16. Bg5 {[%clk 0:02:49.3]} 16... Qc5+ {[%clk 0:01:56.9]}
17. Kh1 {[%clk 0:02:47.3]} 17... Qb5 {[%clk 0:01:52.5]} 18. c4 {[%clk
0:02:43.2]} 18... Qxb2 {[%clk 0:01:48.4]} 19. Rab1 {[%clk 0:02:37.1]} 19... Qxa2
{[%clk 0:01:48]} 20. Rxb6 {[%clk 0:02:33.1]} 20... Rc8 {[%clk 0:01:24.2]} 21.
Rxd6 {[%clk 0:02:15.3]} 21... Qxc4 {[%clk 0:01:23.8]} 22. Qxc4 {[%clk
0:02:13.8]} 22... Rxc4 {[%clk 0:01:24.7]} 23. Rxa6 {[%clk 0:02:13.1]} 23...
Nexd5 {[%clk 0:01:21.2]} 24. Bxd5 {[%clk 0:02:11.7]} 1-0

[Event "*** SCC Grand Prix: Titled Tuesday Blitz"]
[Site "Chess.com"]
[Date "2020.10.13"]
[Round "7"]
[White "doons21"]
[Black "Reader777"]
[Result "0-1"]
[WhiteElo "2568"]
[BlackElo "2702"]
[TimeControl "180+1"]
[EndTime "11:13:49 PDT"]
[Termination "Reader777 won by resignation"]

1. e4 {[%clk 0:03:00.9]} 1... c5 {[%clk 0:02:58.7]} 2. c3 {[%clk 0:03:01.2]}
2... Nf6 {[%clk 0:02:57.7]} 3. e5 {[%clk 0:03:01.5]} 3... Nd5 {[%clk 0:02:57.9]}
4. d4 {[%clk 0:03:02.4]} 4... cxd4 {[%clk 0:02:57.8]} 5. Nf3 {[%clk 0:03:03.3]}
5... Nc6 {[%clk 0:02:56.7]} 6. Bc4 {[%clk 0:03:02.9]} 6... Nb6 {[%clk
0:02:55.7]} 7. Bb3 {[%clk 0:03:03.4]} 7... d6 {[%clk 0:02:54.3]} 8. exd6 {[%clk
0:03:04.3]} 8... Qxd6 {[%clk 0:02:54.1]} 9. O-O {[%clk 0:03:04.9]} 9... g6
{[%clk 0:02:53.7]} 10. cxd4 {[%clk 0:02:47.1]} 10... Bg7 {[%clk 0:02:49.7]} 11.
h3 {[%clk 0:02:47.5]} 11... O-O {[%clk 0:02:48.3]} 12. Qe2 {[%clk 0:02:44.6]}
12... Nxd4 {[%clk 0:02:38.9]} 13. Nxd4 {[%clk 0:02:44.3]} 13... Bxd4 {[%clk
0:02:39]} 14. Rd1 {[%clk 0:02:31.9]} 14... e5 {[%clk 0:02:24.6]} 15. Nc3 {[%clk
0:02:23.5]} 15... Be6 {[%clk 0:01:57.9]} 16. Ne4 {[%clk 0:01:44.3]} 16... Qe7
{[%clk 0:01:54.9]} 17. Bg5 {[%clk 0:01:41.2]} 17... f6 {[%clk 0:01:54.3]} 18.
Nxf6+ {[%clk 0:01:40.1]} 18... Rxf6 {[%clk 0:01:53.8]} 19. Bxe6+ {[%clk
0:01:40.5]} 19... Qxe6 {[%clk 0:01:53.4]} 20. Rxd4 {[%clk 0:01:40.9]} 20... exd4
{[%clk 0:01:49.3]} 0-1

[Event "*** SCC Grand Prix: Titled Tuesday Blitz"]
[Site "Chess.com"]
[Date "2020.10.13"]
[Round "7"]
[White "UCantHandleDenker"]
[Black "kidagent"]
[Result "1-0"]
[WhiteElo "2529"]
[BlackElo "2275"]
[TimeControl "180+1"]
[EndTime "11:13:53 PDT"]
[Termination "UCantHandleDenker won by resignation"]

1. Nf3 {[%clk 0:03:00.9]} 1... d5 {[%clk 0:02:56.9]} 2. g3 {[%clk 0:03:00.4]}
2... Nf6 {[%clk 0:02:56.8]} 3. Bg2 {[%clk 0:03:00.5]} 3... Bf5 {[%clk
0:02:56.4]} 4. O-O {[%clk 0:03:00.4]} 4... e6 {[%clk 0:02:56.8]} 5. d3 {[%clk
0:03:00.7]} 5... Be7 {[%clk 0:02:55.6]} 6. Nbd2 {[%clk 0:03:01.3]} 6... O-O
{[%clk 0:02:54.9]} 7. c4 {[%clk 0:03:01.3]} 7... c6 {[%clk 0:02:54.6]} 8. b3
{[%clk 0:03:01.7]} 8... Nbd7 {[%clk 0:02:54.2]} 9. Bb2 {[%clk 0:03:01.9]} 9...
dxc4 {[%clk 0:02:49.9]} 10. bxc4 {[%clk 0:03:01.2]} 10... Qc7 {[%clk 0:02:47.5]}
11. Qc2 {[%clk 0:02:56.7]} 11... Rfd8 {[%clk 0:02:44.7]} 12. Rab1 {[%clk
0:02:39.5]} 12... Rac8 {[%clk 0:02:43.3]} 13. Bc3 {[%clk 0:02:34.7]} 13... b6
{[%clk 0:02:41.1]} 14. Nd4 {[%clk 0:02:31.4]} 14... c5 {[%clk 0:02:34.4]} 15.
Nxf5 {[%clk 0:02:28.2]} 15... exf5 {[%clk 0:02:34.6]} 16. Nf3 {[%clk 0:02:26.7]}
16... Nf8 {[%clk 0:02:31.4]} 17. Nh4 {[%clk 0:02:18.5]} 17... g6 {[%clk
0:02:30.3]} 18. Qb2 {[%clk 0:02:19]} 18... Nh5 {[%clk 0:02:20.6]} 19. Bf3 {[%clk
0:02:17.2]} 19... Bxh4 {[%clk 0:02:02.2]} 20. gxh4 {[%clk 0:02:06.1]} 20... Nf4
{[%clk 0:01:59.5]} 21. Be5 {[%clk 0:01:59.8]} 21... Nh3+ {[%clk 0:01:48.5]} 22.
Kg2 {[%clk 0:01:59]} 22... Nf4+ {[%clk 0:01:38.2]} 23. Kg3 {[%clk 0:01:58.7]}
1-0

[Event "*** SCC Grand Prix: Titled Tuesday Blitz"]
[Site "Chess.com"]
[Date "2020.10.13"]
[Round "7"]
[White "barbara25"]
[Black "korkmaz16"]
[Result "0-1"]
[WhiteElo "2249"]
[BlackElo "2367"]
[TimeControl "180+1"]
[EndTime "11:14:06 PDT"]
[Termination "korkmaz16 won by resignation"]

1. e4 {[%clk 0:03:00.9]} 1... e6 {[%clk 0:02:58.9]} 2. d4 {[%clk 0:03:00.7]}
2... d5 {[%clk 0:02:58.7]} 3. Nc3 {[%clk 0:03:01.6]} 3... Nf6 {[%clk 0:02:58.1]}
4. Bg5 {[%clk 0:03:00.8]} 4... Be7 {[%clk 0:02:56.8]} 5. e5 {[%clk 0:03:00.3]}
5... Nfd7 {[%clk 0:02:56.2]} 6. h4 {[%clk 0:03:00.9]} 6... Bxg5 {[%clk 0:02:56]}
7. hxg5 {[%clk 0:03:01.8]} 7... Qxg5 {[%clk 0:02:56.4]} 8. Nf3 {[%clk
0:03:01.8]} 8... Qe7 {[%clk 0:02:56.6]} 9. Bd3 {[%clk 0:03:02.4]} 9... h6 {[%clk
0:02:54]} 10. Qe2 {[%clk 0:03:02.5]} 10... Nc6 {[%clk 0:02:52.2]} 11. g4 {[%clk
0:03:02.5]} 11... Nb6 {[%clk 0:02:40.5]} 12. g5 {[%clk 0:02:54.3]} 12... Bd7
{[%clk 0:02:40.5]} 13. gxh6 {[%clk 0:02:53.6]} 13... gxh6 {[%clk 0:02:40.5]} 14.
O-O-O {[%clk 0:02:54.1]} 14... O-O-O {[%clk 0:02:40.2]} 15. Rh5 {[%clk
0:02:54.7]} 15... Na5 {[%clk 0:02:30.6]} 16. Rdh1 {[%clk 0:02:53.5]} 16... Nac4
{[%clk 0:02:28]} 17. a3 {[%clk 0:02:53.4]} 17... c5 {[%clk 0:02:17]} 18. Rxh6
{[%clk 0:02:51.5]} 18... Rxh6 {[%clk 0:02:16.5]} 19. Rxh6 {[%clk 0:02:50.9]}
19... cxd4 {[%clk 0:02:16.9]} 20. Nb1 {[%clk 0:02:47.7]} 20... Rg8 {[%clk
0:02:10.8]} 21. Rf6 {[%clk 0:02:46.8]} 21... Qc5 {[%clk 0:02:06.9]} 22. Rxf7
{[%clk 0:02:39.7]} 22... Be8 {[%clk 0:02:05]} 23. Rf6 {[%clk 0:02:38.5]} 23...
Bh5 {[%clk 0:02:04.4]} 24. Rxe6 {[%clk 0:02:35.8]} 24... Rg1+ {[%clk 0:02:01]}
25. Nxg1 {[%clk 0:02:34.9]} 25... Bxe2 {[%clk 0:02:00.6]} 26. Nxe2 {[%clk
0:02:35]} 26... Qf8 {[%clk 0:01:55.4]} 27. f4 {[%clk 0:02:33.8]} 27... Qh8
{[%clk 0:01:52]} 28. Ng3 {[%clk 0:02:18.5]} 28... Qh2 {[%clk 0:01:47.4]} 29. Rg6
{[%clk 0:02:06.3]} 29... Qg1+ {[%clk 0:01:45.4]} 30. Nf1 {[%clk 0:02:06.1]}
30... Qf2 {[%clk 0:01:43.3]} 31. Bf5+ {[%clk 0:02:00.9]} 31... Kc7 {[%clk
0:01:33.7]} 32. Rg7+ {[%clk 0:01:54.2]} 32... Kc6 {[%clk 0:01:33.6]} 33. Rg6+
{[%clk 0:01:54.3]} 33... Kb5 {[%clk 0:01:29.4]} 34. a4+ {[%clk 0:01:54.6]} 34...
Ka5 {[%clk 0:01:27.6]} 35. b4+ {[%clk 0:01:43]} 35... Kxb4 {[%clk 0:01:27.1]}
0-1

[Event "*** SCC Grand Prix: Titled Tuesday Blitz"]
[Site "Chess.com"]
[Date "2020.10.13"]
[Round "7"]
[White "Aleksey_Sorokin"]
[Black "Sankalp_Gupta2003"]
[Result "1-0"]
[WhiteElo "2839"]
[BlackElo "2729"]
[TimeControl "180+1"]
[EndTime "11:14:08 PDT"]
[Termination "Aleksey_Sorokin won by resignation"]

1. d4 {[%clk 0:03:00.9]} 1... Nf6 {[%clk 0:03:00.2]} 2. c4 {[%clk 0:03:01]} 2...
g6 {[%clk 0:03:00.8]} 3. Nc3 {[%clk 0:03:00.7]} 3... Bg7 {[%clk 0:03:01.5]} 4.
e4 {[%clk 0:03:00.8]} 4... d6 {[%clk 0:03:02.2]} 5. Nf3 {[%clk 0:03:01.1]} 5...
O-O {[%clk 0:03:02.6]} 6. Be2 {[%clk 0:03:01.5]} 6... e5 {[%clk 0:03:02.8]} 7.
O-O {[%clk 0:03:01.8]} 7... Nbd7 {[%clk 0:03:03.1]} 8. Be3 {[%clk 0:03:01.2]}
8... Qe7 {[%clk 0:03:01.5]} 9. Qc2 {[%clk 0:02:59.9]} 9... c6 {[%clk 0:03:01.4]}
10. Rfe1 {[%clk 0:02:58.5]} 10... Ng4 {[%clk 0:02:57.9]} 11. Bg5 {[%clk
0:02:57.8]} 11... f6 {[%clk 0:02:58.3]} 12. Bh4 {[%clk 0:02:53.6]} 12... h5
{[%clk 0:02:55.9]} 13. h3 {[%clk 0:02:46.9]} 13... Nh6 {[%clk 0:02:54.1]} 14.
Rad1 {[%clk 0:02:44.5]} 14... Rf7 {[%clk 0:02:39.9]} 15. c5 {[%clk 0:02:40.1]}
15... dxc5 {[%clk 0:02:38.8]} 16. dxe5 {[%clk 0:02:39.9]} 16... Nxe5 {[%clk
0:02:36.6]} 17. Nxe5 {[%clk 0:02:39.6]} 17... Qxe5 {[%clk 0:02:37.5]} 18. Bc4
{[%clk 0:02:38.5]} 18... Kh7 {[%clk 0:02:17.8]} 19. Bxf7 {[%clk 0:02:35.8]}
19... Nxf7 {[%clk 0:02:18.7]} 20. Bg3 {[%clk 0:02:33.9]} 20... Qg5 {[%clk
0:02:17.2]} 21. Ne2 {[%clk 0:02:14.8]} 21... h4 {[%clk 0:02:09.8]} 22. Bf4
{[%clk 0:02:14.8]} 22... Qh5 {[%clk 0:02:10.2]} 23. f3 {[%clk 0:02:04.8]} 23...
Be6 {[%clk 0:02:07.1]} 24. b3 {[%clk 0:02:03.1]} 24... b6 {[%clk 0:02:04.1]} 25.
Bc1 {[%clk 0:01:57.5]} 25... g5 {[%clk 0:02:03.3]} 26. f4 {[%clk 0:01:49.1]}
26... g4 {[%clk 0:01:59.1]} 27. f5 {[%clk 0:01:48.2]} 27... Bc8 {[%clk
0:01:54.8]} 28. Nf4 {[%clk 0:01:46.9]} 28... Qg5 {[%clk 0:01:55.3]} 29. Ne6
{[%clk 0:01:43.6]} 29... Qh5 {[%clk 0:01:55.5]} 30. Nxg7 {[%clk 0:01:28.3]}
30... Kxg7 {[%clk 0:01:56.4]} 31. Qe2 {[%clk 0:01:23.3]} 31... Ne5 {[%clk
0:01:45.4]} 32. Bf4 {[%clk 0:01:23]} 1-0

[Event "*** SCC Grand Prix: Titled Tuesday Blitz"]
[Site "Chess.com"]
[Date "2020.10.13"]
[Round "7"]
[White "Azerichess"]
[Black "Supernotar"]
[Result "1-0"]
[WhiteElo "2963"]
[BlackElo "2840"]
[TimeControl "180+1"]
[EndTime "11:14:28 PDT"]
[Termination "Azerichess won by resignation"]

1. d4 {[%clk 0:03:00.9]} 1... d5 {[%clk 0:03:00]} 2. c4 {[%clk 0:03:00.7]} 2...
dxc4 {[%clk 0:03:00.3]} 3. e3 {[%clk 0:03:00.1]} 3... Nf6 {[%clk 0:03:00.3]} 4.
Nf3 {[%clk 0:02:57.9]} 4... e6 {[%clk 0:03:00.8]} 5. Bxc4 {[%clk 0:02:58.1]}
5... a6 {[%clk 0:03:00.8]} 6. O-O {[%clk 0:02:58.2]} 6... b5 {[%clk 0:03:00.5]}
7. Be2 {[%clk 0:02:55.8]} 7... Bb7 {[%clk 0:03:00.8]} 8. b3 {[%clk 0:02:54.1]}
8... Nbd7 {[%clk 0:03:00.6]} 9. a4 {[%clk 0:02:52.7]} 9... b4 {[%clk 0:03:00.6]}
10. Bb2 {[%clk 0:02:51.8]} 10... c5 {[%clk 0:02:58.4]} 11. Nbd2 {[%clk
0:02:52.3]} 11... Be7 {[%clk 0:02:58.2]} 12. Rc1 {[%clk 0:02:51.8]} 12... O-O
{[%clk 0:02:58.1]} 13. dxc5 {[%clk 0:02:43.9]} 13... Nxc5 {[%clk 0:02:52]} 14.
Bxf6 {[%clk 0:02:42.4]} 14... gxf6 {[%clk 0:02:51.2]} 15. Nd4 {[%clk 0:02:41.9]}
15... Kh8 {[%clk 0:02:47.6]} 16. Bf3 {[%clk 0:02:39.9]} 16... Bxf3 {[%clk
0:02:40.7]} 17. Qxf3 {[%clk 0:02:40.8]} 17... Nd3 {[%clk 0:02:32]} 18. Rc2
{[%clk 0:02:29.8]} 18... Ne5 {[%clk 0:02:29.7]} 19. Qb7 {[%clk 0:02:23.6]} 19...
Rg8 {[%clk 0:02:22.2]} 20. g3 {[%clk 0:02:20.6]} 20... a5 {[%clk 0:01:57.4]} 21.
Nc4 {[%clk 0:02:15]} 21... Nxc4 {[%clk 0:01:31.1]} 22. Rxc4 {[%clk 0:02:15.9]}
22... Rb8 {[%clk 0:01:15.2]} 23. Qf3 {[%clk 0:02:12.7]} 23... Qd7 {[%clk
0:01:06.2]} 24. Rfc1 {[%clk 0:02:12.1]} 24... Rbc8 {[%clk 0:01:01]} 25. Nc6
{[%clk 0:02:04.4]} 25... Rg6 {[%clk 0:00:24.3]} 26. Nxe7 {[%clk 0:02:03.1]} 1-0

[Event "*** SCC Grand Prix: Titled Tuesday Blitz"]
[Site "Chess.com"]
[Date "2020.10.13"]
[Round "7"]
[White "shriyanasmallya"]
[Black "ChronicUnhappiness"]
[Result "0-1"]
[WhiteElo "1630"]
[BlackElo "2355"]
[TimeControl "180+1"]
[EndTime "11:14:35 PDT"]
[Termination "ChronicUnhappiness won by resignation"]

1. e4 {[%clk 0:03:00.9]} 1... d6 {[%clk 0:02:58.8]} 2. d4 {[%clk 0:03:00.3]}
2... Nf6 {[%clk 0:02:59.1]} 3. Nc3 {[%clk 0:02:59.1]} 3... g6 {[%clk 0:02:59.5]}
4. Nf3 {[%clk 0:02:58.3]} 4... Bg7 {[%clk 0:02:59.8]} 5. Bd3 {[%clk 0:02:58.7]}
5... O-O {[%clk 0:02:58.6]} 6. Be3 {[%clk 0:02:58.7]} 6... Bg4 {[%clk
0:02:57.5]} 7. Qd2 {[%clk 0:02:58.8]} 7... Nc6 {[%clk 0:02:32.3]} 8. O-O-O
{[%clk 0:02:55]} 8... e5 {[%clk 0:02:30.6]} 9. d5 {[%clk 0:02:53.6]} 9... Nd4
{[%clk 0:02:29.6]} 10. Be2 {[%clk 0:02:43.5]} 10... Bxf3 {[%clk 0:02:23.3]} 11.
gxf3 {[%clk 0:02:40.9]} 11... c5 {[%clk 0:02:16.7]} 12. dxc6 {[%clk 0:02:39.4]}
12... bxc6 {[%clk 0:02:15.6]} 13. Bxd4 {[%clk 0:02:36.2]} 13... exd4 {[%clk
0:02:15.3]} 14. Qxd4 {[%clk 0:02:35]} 14... Nd5 {[%clk 0:02:11.1]} 15. Qc4
{[%clk 0:02:27.7]} 15... Nxc3 {[%clk 0:02:01.5]} 16. bxc3 {[%clk 0:02:26.5]}
16... Qg5+ {[%clk 0:01:52]} 17. Kb1 {[%clk 0:02:21.9]} 17... Rab8+ {[%clk
0:01:51.4]} 18. Ka1 {[%clk 0:02:19.4]} 18... Qa5 {[%clk 0:01:41.2]} 19. a4
{[%clk 0:01:49.5]} 19... Bxc3+ {[%clk 0:01:35.2]} 20. Ka2 {[%clk 0:01:49.3]}
20... Rb4 {[%clk 0:01:27.2]} 21. Qxc6 {[%clk 0:01:19.1]} 21... Rb2+ {[%clk
0:01:21.1]} 22. Ka1 {[%clk 0:01:09.2]} 22... Rb5+ {[%clk 0:01:16]} 23. Qxc3
{[%clk 0:00:59.5]} 23... Qxc3+ {[%clk 0:01:13.9]} 0-1

[Event "*** SCC Grand Prix: Titled Tuesday Blitz"]
[Site "Chess.com"]
[Date "2020.10.13"]
[Round "7"]
[White "anpospan"]
[Black "WuinaterJr"]
[Result "1-0"]
[WhiteElo "2389"]
[BlackElo "2514"]
[TimeControl "180+1"]
[EndTime "11:14:41 PDT"]
[Termination "anpospan won by resignation"]

1. Nf3 {[%clk 0:03:00.9]} 1... c5 {[%clk 0:03:00.1]} 2. g3 {[%clk 0:03:00.8]}
2... Nc6 {[%clk 0:03:00.5]} 3. Bg2 {[%clk 0:03:01.2]} 3... g6 {[%clk 0:03:01.1]}
4. O-O {[%clk 0:03:01.7]} 4... Bg7 {[%clk 0:03:01.7]} 5. c3 {[%clk 0:03:01.2]}
5... Nf6 {[%clk 0:03:01.7]} 6. d4 {[%clk 0:03:01.1]} 6... d5 {[%clk 0:03:02.2]}
7. Nbd2 {[%clk 0:02:57.7]} 7... cxd4 {[%clk 0:02:59.6]} 8. cxd4 {[%clk
0:02:56.8]} 8... O-O {[%clk 0:02:59.8]} 9. e3 {[%clk 0:02:53.3]} 9... a6 {[%clk
0:02:58.9]} 10. a4 {[%clk 0:02:40.3]} 10... Bf5 {[%clk 0:02:56.5]} 11. Qb3
{[%clk 0:02:34.8]} 11... Na5 {[%clk 0:02:55.2]} 12. Qb4 {[%clk 0:02:28.6]} 12...
Rc8 {[%clk 0:02:50.9]} 13. b3 {[%clk 0:02:24.3]} 13... b6 {[%clk 0:02:33.3]} 14.
Ba3 {[%clk 0:02:22.6]} 14... Nc6 {[%clk 0:02:32.1]} 15. Qc3 {[%clk 0:02:17.2]}
15... Ne4 {[%clk 0:02:13.2]} 16. Qb2 {[%clk 0:02:01.2]} 16... Qd7 {[%clk
0:02:11.8]} 17. Rac1 {[%clk 0:01:59.1]} 17... Rc7 {[%clk 0:02:06.4]} 18. Nxe4
{[%clk 0:01:57.3]} 18... Bxe4 {[%clk 0:02:02.8]} 19. Ne5 {[%clk 0:01:45.3]}
19... Nxe5 {[%clk 0:01:52.9]} 20. Bxe4 {[%clk 0:01:43.3]} 20... dxe4 {[%clk
0:01:46.1]} 21. dxe5 {[%clk 0:01:41.3]} 21... Rfc8 {[%clk 0:01:38.5]} 22. Qd4
{[%clk 0:01:23.3]} 22... Rxc1 {[%clk 0:00:54.3]} 23. Qxd7 {[%clk 0:01:16.4]} 1-0

[Event "*** SCC Grand Prix: Titled Tuesday Blitz"]
[Site "Chess.com"]
[Date "2020.10.13"]
[Round "7"]
[White "dretch"]
[Black "thedjoker98"]
[Result "1-0"]
[WhiteElo "2831"]
[BlackElo "2597"]
[TimeControl "180+1"]
[EndTime "11:14:44 PDT"]
[Termination "dretch won by resignation"]

1. d4 {[%clk 0:03:00.9]} 1... d5 {[%clk 0:02:49.4]} 2. c4 {[%clk 0:03:00.9]}
2... c6 {[%clk 0:02:47.3]} 3. Nc3 {[%clk 0:03:01.4]} 3... dxc4 {[%clk 0:02:46]}
4. Nf3 {[%clk 0:03:00.8]} 4... b5 {[%clk 0:02:44.6]} 5. a4 {[%clk 0:02:58.7]}
5... b4 {[%clk 0:02:41.7]} 6. Ne4 {[%clk 0:02:58.8]} 6... Qd5 {[%clk 0:02:38.7]}
7. Qc2 {[%clk 0:02:50.2]} 7... Bf5 {[%clk 0:02:34.5]} 8. Nfd2 {[%clk 0:02:49.3]}
8... c3 {[%clk 0:02:31.2]} 9. bxc3 {[%clk 0:02:33.9]} 9... bxc3 {[%clk 0:02:31]}
10. Qxc3 {[%clk 0:02:05.1]} 10... Bxe4 {[%clk 0:02:30.8]} 11. f3 {[%clk
0:02:04.5]} 11... Bg6 {[%clk 0:02:30]} 12. e4 {[%clk 0:02:05]} 12... Qd8 {[%clk
0:02:11.4]} 13. Rb1 {[%clk 0:01:56.1]} 13... e6 {[%clk 0:02:07.6]} 14. Nc4
{[%clk 0:01:53.6]} 14... a5 {[%clk 0:02:04.5]} 15. Ba3 {[%clk 0:01:50.1]} 15...
Bxa3 {[%clk 0:02:00.5]} 16. Qxa3 {[%clk 0:01:49.7]} 16... Ne7 {[%clk 0:01:58.6]}
17. Nd6+ {[%clk 0:01:43.6]} 17... Kf8 {[%clk 0:01:58.7]} 18. Bc4 {[%clk
0:01:30.3]} 18... Na6 {[%clk 0:01:55.8]} 19. Bxa6 {[%clk 0:01:25.9]} 19... Rxa6
{[%clk 0:01:56.7]} 20. Rb7 {[%clk 0:01:24.6]} 20... Rb6 {[%clk 0:01:51.2]} 21.
Ke2 {[%clk 0:01:17.3]} 21... Rxb7 {[%clk 0:01:36.6]} 22. Nxb7 {[%clk 0:01:17.2]}
22... Qb6 {[%clk 0:01:07.9]} 23. Nc5 {[%clk 0:01:17.2]} 23... Qb4 {[%clk
0:01:03.5]} 24. Qa1 {[%clk 0:01:09.5]} 24... Qxd4 {[%clk 0:00:51.2]} 25. Qxd4
{[%clk 0:01:08.3]} 1-0

[Event "*** SCC Grand Prix: Titled Tuesday Blitz"]
[Site "Chess.com"]
[Date "2020.10.13"]
[Round "7"]
[White "Triumphmate"]
[Black "BJthechessgod"]
[Result "1-0"]
[WhiteElo "2438"]
[BlackElo "2249"]
[TimeControl "180+1"]
[EndTime "11:14:47 PDT"]
[Termination "Triumphmate won by checkmate"]

1. e4 {[%clk 0:03:00.9]} 1... c5 {[%clk 0:02:56.2]} 2. Nf3 {[%clk 0:03:01.1]}
2... Nc6 {[%clk 0:02:52]} 3. d4 {[%clk 0:03:02]} 3... cxd4 {[%clk 0:02:52.3]} 4.
Nxd4 {[%clk 0:03:02.9]} 4... g6 {[%clk 0:02:52.9]} 5. f4 {[%clk 0:03:02.2]} 5...
Bg7 {[%clk 0:02:52.2]} 6. Nf3 {[%clk 0:03:02.8]} 6... d6 {[%clk 0:02:51.2]} 7.
Nc3 {[%clk 0:03:02.9]} 7... Nf6 {[%clk 0:02:34.2]} 8. Bd3 {[%clk 0:03:03.1]}
8... O-O {[%clk 0:02:30.8]} 9. O-O {[%clk 0:03:03.5]} 9... Bg4 {[%clk
0:02:31.3]} 10. Qe1 {[%clk 0:03:03.1]} 10... Nd7 {[%clk 0:02:24.4]} 11. Kh1
{[%clk 0:03:01.8]} 11... Bxf3 {[%clk 0:02:20.2]} 12. Rxf3 {[%clk 0:03:01.5]}
12... Nd4 {[%clk 0:02:21.1]} 13. Rh3 {[%clk 0:03:01.6]} 13... Nc5 {[%clk
0:02:19.7]} 14. Bd2 {[%clk 0:02:54]} 14... Nxd3 {[%clk 0:02:18.1]} 15. cxd3
{[%clk 0:02:51.9]} 15... Nc2 {[%clk 0:02:18.5]} 16. Qh4 {[%clk 0:02:52.5]} 16...
h5 {[%clk 0:02:16.6]} 17. Rc1 {[%clk 0:02:52.8]} 17... Bf6 {[%clk 0:02:15.2]}
18. Qg3 {[%clk 0:02:50.8]} 18... Nb4 {[%clk 0:02:13.2]} 19. Rxh5 {[%clk
0:02:44.3]} 19... Nxd3 {[%clk 0:02:13.6]} 20. Rf1 {[%clk 0:02:41.3]} 20... Nc5
{[%clk 0:02:06.7]} 21. f5 {[%clk 0:02:37.2]} 21... Qe8 {[%clk 0:01:59.6]} 22.
Rh3 {[%clk 0:02:11.8]} 22... Bg7 {[%clk 0:01:52.5]} 23. Qh4 {[%clk 0:01:14.7]}
23... f6 {[%clk 0:01:52.7]} 24. Qh7+ {[%clk 0:01:09.9]} 24... Kf7 {[%clk
0:01:52.5]} 25. Qxg6+ {[%clk 0:01:10.3]} 25... Kg8 {[%clk 0:01:52.6]} 26. Qh7+
{[%clk 0:01:06.4]} 26... Kf7 {[%clk 0:01:52.9]} 27. Rg3 {[%clk 0:01:04.9]} 27...
Rg8 {[%clk 0:01:53.2]} 28. Bh6 {[%clk 0:01:04.9]} 28... Qc6 {[%clk 0:01:34]} 29.
Qg6+ {[%clk 0:00:58.7]} 29... Kf8 {[%clk 0:01:33.6]} 30. Bxg7+ {[%clk
0:00:59.3]} 30... Rxg7 {[%clk 0:01:34]} 31. Qxg7+ {[%clk 0:00:59.9]} 31... Ke8
{[%clk 0:01:34.9]} 32. Qg8+ {[%clk 0:00:58.4]} 32... Kd7 {[%clk 0:01:35.8]} 33.
Qxa8 {[%clk 0:00:58.6]} 33... Nxe4 {[%clk 0:01:36.7]} 34. Nxe4 {[%clk
0:00:58.2]} 34... Qxe4 {[%clk 0:01:37.6]} 35. Qg8 {[%clk 0:00:56.9]} 35... Qe2
{[%clk 0:01:36.4]} 36. Qe6+ {[%clk 0:00:57.4]} 36... Qxe6 {[%clk 0:01:36.4]} 37.
fxe6+ {[%clk 0:00:58.3]} 37... Kxe6 {[%clk 0:01:37.3]} 38. h4 {[%clk 0:00:58.5]}
38... d5 {[%clk 0:01:37.9]} 39. h5 {[%clk 0:00:59.4]} 39... d4 {[%clk
0:01:38.7]} 40. h6 {[%clk 0:01:00.3]} 40... d3 {[%clk 0:01:39.6]} 41. h7 {[%clk
0:01:00.6]} 41... d2 {[%clk 0:01:40.5]} 42. h8=Q {[%clk 0:01:01.1]} 42... d1=Q
{[%clk 0:01:41.4]} 43. Rxd1 {[%clk 0:01:01.1]} 43... Kf7 {[%clk 0:01:41.7]} 44.
Qg8# {[%clk 0:01:01]} 1-0